Cogmind - Beta 16 @@@ ROGUE MODE // 2025.10.26 @ 10:44:21 Player: Memoir Result: Destroyed by Y-45 Defender with Beam Rifle Performance ------------- Evolutions (1) 500 Regions Visited (2) 400 Robots Destroyed (28) 140 Value Destroyed (735) 735 Prototype IDs (0) 0 Alien Tech Used (0) 0 Bonus (0) 0 TOTAL SCORE: 1775 Bonus ------- None Cogmind --------- Core Integrity 0/400 Matter 241/300 Energy 308/310 System Corruption 0% Temperature Warm (174) Movement Walking (120) Location -9/Materials Parts ------- > --- POWER (2) -------- Ion Engine Light Nuclear Core > --- PROPULSION (3) --- Carbon-fiber Leg Carbon-fiber Leg Carbon-fiber Leg > --- UTILITY (2) ------ Improved Terrain Scan Processor Hardlight Generator > --- WEAPON (2) ------- Particle Gun Light Assault Rifle > --- INVENTORY (5) ---- Carbon-fiber Leg Improved Heat Sink High-capacity Storage Unit Mining Claw Katana Peak State ------------ > --- POWER ------------ Ion Engine Light Nuclear Core > --- PROPULSION ------- Carbon-fiber Leg Carbon-fiber Leg Carbon-fiber Leg > --- UTILITY ---------- Improved Terrain Scan Processor Hardlight Generator > --- WEAPON ----------- Particle Gun Light Assault Rifle > --- INVENTORY -------- Carbon-fiber Leg Improved Heat Sink High-capacity Storage Unit Mining Claw Katana [Rating: 23] Favorites ----------- Power Light Ion Engine Engine Light Ion Engine Power Core Light Nuclear Core Propulsion Aluminum Leg Treads Light Treads Leg Aluminum Leg Flight Unit Flight Unit Utility High-capacity Storage Unit Device Improved Heat Sink Storage High-capacity Storage Unit Processor Terrain Scan Processor Weapon Light Assault Rifle Energy Gun Small Laser Ballistic Gun Light Assault Rifle Launcher Grenade Launcher Impact Weapon Flail Slashing Weapon Mining Claw Build | -11 -10 -9 ------- Run | Yrd Mat Mat Slots Evolved 2 | . . 2 Power 1 | . . 1 Propulsion 1 | . . 1 Utility . | . . . Weapon . | . . . Parts Attached 46 | 6 9 31 Power 6 | 1 . 5 Engine 5 | 1 . 4 Core 1 | . . 1 Reactor . | . . . Propulsion 22 | 2 4 16 Treads 2 | 2 . . Leg 17 | . 4 13 Wheel . | . . . Hover . | . . . Flight 3 | . . 3 Utility 7 | 1 3 3 Device 2 | . 1 1 Storage 2 | 1 1 . Processor 3 | . 1 2 Hackware . | . . . Protection . | . . . Artifact . | . . . Weapon 11 | 2 2 7 Energy Gun 3 | . . 3 Energy Cannon . | . . . Ballistic Gun 4 | 2 1 1 Ballistic Cannon . | . . . Launcher 1 | . . 1 Special Weapon . | . . . Impact Weapon 1 | . . 1 Slashing Weapon 2 | . 1 1 Piercing Weapon . | . . . Special Melee Weapon . | . . . Unidentified Prototypes . | . . . Parts Lost 17 | . . 17 Power 4 | . . 4 Propulsion 8 | . . 8 Utility . | . . . Weapon 5 | . . 5 Highest Loss Streak 7 | . . 7 To Critical Strikes . | . . . Average Backups 3 | . 1 4 Power . | . . . Propulsion . | . . . Utility 1 | . . 1 Weapon 1 | . . 1 Tool/Special . | . . . Unused Backups 2 | . . 2 Power . | . . . Propulsion 1 | . . 1 Utility 1 | . . 1 Weapon . | . . . Tool/Special . | . . . Average Slot Usage (%) 86 | . 93 80 Engine 10 | . 14 8 Core 1 | . . 2 Treads 4 | . 11 . Leg 21 | . 16 25 Flight 1 | . . 1 Device 2 | . 4 . Storage 11 | . 14 10 Processor 7 | . 3 11 Energy Gun 3 | . . 6 Ballistic Gun 17 | . 27 9 Slashing Weapon 1 | . . 2 Peak Build Rating 23 | 6 9 23 Average Rating 8 | 4 7 10 On Entrance 4 | . 6 7 Avg Prop Armor Cover (%) . | . . . Naked Turns . | . . . Heaviest Build 54 | 11 46 54 Greatest Support 45 | 40 40 45 Greatest Overweight (x) 14 | . 2 14 Average Overweight (x) . | . . 1 Largest Inventory Capacity 20 | 8 20 20 Average Capacity 14 | 7 8 19 Most Carried 7 | 5 6 7 Average Carried 3 | . 1 4 Final Capacity 20 | 8 20 5 Final Carried 5 | . 4 5 Class Distribution -------------------- 61% | Mutant 38% | Scavenger-Mutant Dominant Class ---------------- Mutant | -10/Materials Scavenger-Mutant | -9/Materials Resources | -11 -10 -9 ----------- Run | Yrd Mat Mat Matter Collected 878 | 235 257 386 Remotely . | . . . Salvage Created 1022 | 94 285 643 Parts 64 | 5 17 42 Haulers Intercepted . | . . . Recyclers Shooed 1 | 1 . . Parts Field Recycled . | . . . Retrieved Matter . | . . . Parts Self-Destructed . | . . . Prevented . | . . . Parts Restored . | . . . Kills | -11 -10 -9 ------- Run | Yrd Mat Mat Combat Hostiles Destroyed 23 | . 7 16 Melee 4 | . . 4 Guns 17 | . 7 10 AOE 2 | . . 2 Classes Destroyed 8 | 2 2 4 Worker 1 | . . 1 Builder 1 | . . 1 Tunneler 1 | 1 . . Recycler 2 | 1 1 . Swarmer 6 | . 3 3 Grunt 13 | . 4 9 Duelist 1 | . . 1 Sentry 3 | . . 3 Best Kill Streak 5 | 2 5 4 Combat Bots Only 5 | . 5 3 Max Kills in Single Turn 2 | 1 1 2 Gunslinging . | . . . Exploded 2 | . . 2 Melee 1 | . . 1 Uniques/NPCs Destroyed . | . . . Combat | -11 -10 -9 -------- Run | Yrd Mat Mat Hostile Shots Fired 279 | . 65 214 Missed 86 | . 18 68 Hits 193 | . 47 146 Projectile 193 | . 47 146 Critical Strikes 2 | . . 2 Damage Taken 2189 | . 470 1719 Core 497 | . 93 404 Absorbed by Shields 36 | . . 36 Core Remaining (%) 81 | 100 62 . Volleys Fired 109 | 4 36 69 Largest 2 | 2 2 2 Hottest 85 | 40 40 85 Shots Fired 183 | 8 72 103 Gun 180 | 8 72 100 Cannon . | . . . Launcher 3 | . . 3 Special . | . . . Kinetic 140 | 8 72 60 Thermal 40 | . . 40 Explosive 3 | . . 3 Electromagnetic . | . . . Robot Hit Streak 10 | 6 10 10 Robot Miss Streak 5 | 1 5 3 Penetration Max . | . . . Secondary Targets 3 | . 3 . Max Gunslinging Chain 1 | . 1 . Shots Hit Robots 129 | 7 40 82 Core Hits 54 | 3 17 34 Critical Kills . | . . . Critical Parts Destroyed . | . . . Critical Strikes . | . . . Melee Attacks 23 | . 3 20 Impact 7 | . . 7 Slashing 16 | . 3 13 Piercing . | . . . Sneak Attacks . | . . . Combat Hostiles . | . . . Follow-up Attacks 4 | . . 4 Damage Inflicted 1642 | 71 440 1131 Guns 1245 | 71 434 740 Cannons . | . . . Explosions 114 | . . 114 Melee 277 | . . 277 Ramming 6 | . 6 . Kinetic 888 | 71 434 383 Thermal 357 | . . 357 Explosive 114 | . . 114 Electromagnetic . | . . . Impact 149 | . . 149 Slashing 128 | . . 128 Piercing . | . . . Highest Corruption . | . . . Average Corruption . | . . . Corruption Purged . | . . . Corruption Blocked . | . . . Overload Shots . | . . . Overflow Damage 9 | . . 9 Projectiles . | . . . Explosions 9 | . . 9 Melee . | . . . Knockbacks . | . . . Impact . | . . . Kinetic . | . . . Secondary . | . . . Self-Inflicted Damage 32 | . . 32 Shots 1 | . . 1 Rammed 1 | . 1 . Targets Rammed 1 | . 1 . Kicked . | . . . Crushed . | . . . Highest Temperature 196 | . 15 196 Average Temperature 101 | . 11 108 Received Heat Transfer 890 | . 150 740 Siege Activations . | . . . Martial Activations . | . . . Shielding Activations . | . . . Robots Disrupted . | . . . Combat Hostiles . | . . . Robots Corrupted . | . . . Combat Hostiles . | . . . Parts Fried . | . . . Impact Corruptions . | . . . Robots Melted . | . . . Combat Hostiles . | . . . Parts Melted 3 | . . 3 Heat Transferred 822 | . . 822 Parts Sabotaged . | . . . Parts Stolen . | . . . Parts Stripped . | . . . Power Chain Reactions . | . . . Alert | -11 -10 -9 ------- Run | Yrd Mat Mat Maximum Alert Level . | . . . Low Security (%) 100 | 100 100 100 Level 1 . | . . . Level 2 . | . . . Level 3 . | . . . Level 4 . | . . . Level 5 . | . . . High Security . | . . . Max Security . | . . . Peak Influence 100 | 10 100 97 Initial . | . . . Average 24 | 1 23 26 Influence Increases 649 | 10 184 455 Destroy 0b10 Robot/C 460 | . 140 320 Destroy 0b10 Robot/NC 25 | 10 5 10 Destroy Leader 110 | . 30 80 Successful Hack 12 | . 9 3 Destroy Structure 12 | . . 12 Partial Spotted 15 | . . 15 Lose Combat Pursuer 15 | . . 15 Influence Decreases 631 | 10 184 437 Time Decay 479 | 10 184 285 Lost Part 152 | . . 152 Squads Dispatched 4 | . 1 3 Investigation . | . . . Extermination . | . . . Reinforcement 4 | . 1 3 Assault . | . . . Garrison . | . . . Intercept . | . . . Searches Triggered . | . . . Construction Impeded 1 | . . 1 Haulers Reinforced . | . . . Active Scanning Responses . | . . . Cargo Convoy Interrupts . | . . . Stealth | -11 -10 -9 --------- Run | Yrd Mat Mat Distress Signals . | . . . Communications Jammed . | . . . Distress Signals . | . . . Times Spotted 38 | . 15 23 Peak Tracking Total 6 | . 6 3 Tactical Retreats 1 | . . 1 Traps | -11 -10 -9 ------- Run | Yrd Mat Mat Traps Triggered . | . . . Indirectly . | . . . Trap Hack Attempts . | . . . Triggered . | . . . Disarmed . | . . . Reprogrammed . | . . . Reused . | . . . Traps Extracted . | . . . Installed . | . . . Triggered . | . . . Machines | -11 -10 -9 ---------- Run | Yrd Mat Mat Machines Disabled . | . . . Max in Single Turn . | . . . Machines Repaired . | . . . Machines Dismantled . | . . . Machines Sabotaged . | . . . Overloaded Fab Kills . | . . . Hacking | -11 -10 -9 --------- Run | Yrd Mat Mat Machines Accessed 3 | . 2 1 Terminals 2 | . 1 1 Fabricators . | . . . Repair Stations . | . . . Recycling Units 1 | . 1 . Scanalyzers . | . . . Garrison Access . | . . . Total Hacks 12 | . 10 2 Successful 10 | . 8 2 Failed 2 | . 2 . Catastrophic 1 | . 1 . Database Lockouts . | . . . Manual . | . . . Terminals 8 | . 6 2 Fabricators . | . . . Repair Stations . | . . . Recycling Units 4 | . 4 . Scanalyzers . | . . . Garrison Access . | . . . Terminal Hacks 7 | . 5 2 Record 6 | . 5 1 Maintenance Status 1 | . . 1 Fabricator Hacks . | . . . Repair Station Hacks . | . . . Recycling Unit Hacks 3 | . 3 . Process 1 | . 1 . Retrieve Components 2 | . 2 . Scanalyzer . | . . . Garrison Access Hacks . | . . . Unauthorized Hacks . | . . . Terminals . | . . . Fabricators . | . . . Repair Stations . | . . . Recycling Units . | . . . Scanalyzers . | . . . Garrison Access . | . . . Data Cores Recovered . | . . . Used . | . . . Hacking Detections 2 | . 2 . Full Trace Events 2 | . 2 . Feedback Events . | . . . Feedback Blocked . | . . . Robot Schematics Acquired . | . . . Robots Built . | . . . Authchips . | . . . Time . | . . . Total Robot Build Rating . | . . . Part Schematics Acquired . | . . . Parts Built . | . . . Authchips . | . . . Time . | . . . Total Part Build Rating . | . . . Part Studies Acquired . | . . . Parts Repaired . | . . . Time . | . . . Parts Recycled . | . . . Recycled Matter 109 | . 109 . Retrieved Matter . | . . . Retrieved Components . | . . . Parts Scanalyzed . | . . . Part Schematics Acquired . | . . . Parts Damaged . | . . . Bothacking | -11 -10 -9 ------------ Run | Yrd Mat Mat Used RIF Installer . | . . . Robots Hacked . | . . . Non-combat . | . . . Combat . | . . . Robot Hacks Applied . | . . . Relay Couplers Released . | . . . Fabnet Peak Effective % . | . . . Robots Rewired . | . . . Allies Hacked . | . . . Hacks Repelled . | . . . Allies | -11 -10 -9 -------- Run | Yrd Mat Mat Total Allies . | . . . Largest Group . | . . . Highest-Rated Group . | . . . Highest-Rated Ally . | . . . Total Orders . | . . . Ally Attacks . | . . . Total Damage . | . . . Kills . | . . . Allies Corrupted . | . . . Allies Melted . | . . . Intel | -11 -10 -9 ------- Run | Yrd Mat Mat Active Infowar (turns) . | . . . Robot Analysis Total . | . . . Derelict Logs Recovered . | . . . Drone Launches . | . . . Drone Recoveries . | . . . Exploration | -11 -10 -9 ------------- Run | Yrd Mat Mat Turns Passed 1757 | 58 717 982 Spaces Moved 686 | 28 337 321 Core 10 | 8 . 2 Treads 82 | 20 62 . Legs 586 | . 275 311 Wheels . | . . . Hover . | . . . Flight 8 | . . 8 Fastest Speed 50 | 50 120 120 Average Speed 170 | 128 129 217 Slowest Speed 1000 | 160 260 1000 Overloaded Moves . | . . . Propulsion Burnouts . | . . . Robots Hopped . | . . . Potential Cave-ins . | . . . Cave-ins Triggered . | . . . Exploration Rate (%) 21 | 3 44 18 Regions Visited 2 Branch Regions . Pre-discovered Areas . | . . . Known Exits Taken 1 | . 1 . Unknown Exits Taken 1 | 1 . . Scrap Searched . | . . . Spaces Dug . | . . . Terrain Destroyed 13 | . . 13 Melee . | . . . Projectile . | . . . AOE 13 | . . 13 Terrain Rammed . | . . . Walls Destroyed . | . . . Machines Disabled . | . . . Actions | -11 -10 -9 --------- Run | Yrd Mat Mat Total 1076 | 43 546 487 Wait 143 | . 143 . Move 684 | 27 336 321 Hop . | . . . Pick Up 47 | 6 11 30 Fast Attach . | . . . Attach 33 | 6 2 25 Detach 3 | . 1 2 Swap 23 | . 7 16 Drop 15 | . 6 9 Fire 109 | 4 36 69 Melee 18 | . 3 15 Ram . | . . . Kick . | . . . Crush 1 | . 1 . Escape Stasis . | . . . Rewire . | . . . Trap . | . . . Miscellaneous . | . . . Route ------- -11/Scrapyard -10/Materials -9/Materials History --------- Turn | Location | Event 19 | -11/Scrapyard | Discovered new exit (range 15) 59 | -11/Scrapyard | Entered Materials 307 | -10/Materials | Build established: Mutant 737 | -10/Materials | Discovered new exit (range 16) 754 | -10/Materials | Identified exit to Materials 776 | -10/Materials | Entered another Materials area 776 | -9/Materials | Evolved 2 slots: Power x1, Propulsion x1 1044 | -9/Materials | Lost 3 parts (1p2w) 1221 | -9/Materials | Lost 5 parts (1p3n1w) 1390 | -9/Materials | Core integrity fell below 50% 1472 | -9/Materials | Core integrity fell below 20% 1500 | -9/Materials | Lost 7 parts (2p3n2w) 1758 | -9/Materials | Destroyed by Y-45 Defender with Beam Rifle Last Messages --------------- 01540_ Acquired Lgt. Assault Rifle. 01543_ Dropped Heat Sink. 01549_ Acquired Aluminum Leg. 01558_ Dropped Aluminum Leg. 01559_ Dropped Imp. Aluminum Leg. 01561_ Acquired 47 matter. 01569_ Acquired 30 matter. 01582_ Acquired Imp. Aluminum Leg. 01585_ Dropped Aluminum Leg. 01587_ Acquired 10 matter. 01634_ Acquired Carbon-fiber Leg. 01641_ Dropped Aluminum Leg. 01642_ Dropped Imp. Aluminum Leg. 01688_ Acquired Carbon-fiber Leg. 01690_ Acquired Imp. Terrain Scan Processor. 01691_ Discarded Terrain Scan Processor. 01697_ Acquired Hardlight Generator. 01698_ Dropped Flail. 01733_ Y-45 Defender destroyed. 01737_ Critical hit (Burn: +27). Map ----- +----------------------------------------------------+ | ?????????????????????????????????????????????????? | | ?????????????????????????????????????????????????? | | ?????????????????????????????????????????????????? | | ?????????????????????????????????????????????????? | | ?????????????????????????????????????????????????? | | ?????????????????????????????????????????????????? | | ?????????????????????????????????????????????????? | | ?????????????????????????????????????????????????? | | ?????????????????????????????????????????????????? | | ?????????????????????????????????????????????????? | | ???????????????????????????????##????????????????? | | ??????????????????????????????## #####???????????? | | ?????????????????????????????? #???????????? | | ????????????????????????###??? #???????????? | | ???????????????????????? ??? #???????????? | | ????????????????????????!! ???? !! #???????????? | | ????????????????????????!! ???? !! #???????????? | | ????????????????????????! ?????" ????????????? | | ???????????????????????? ?????" ????????????? | | ???????????????????????? ?????? ?????????????? | | ??????????????????????###Y###???? ?????????????? | | ??????????????????????# #???##+##????????????? | | ??????????????????????# !##### #????????????? | | ??????????????????????# [%= #????????????? | | ??????????????????????# [=##### #????????????? | | ??????????????????????# @ #???# #????????????? | | ??????????????????????###/###???# #????????????? | | ???????????????????????? ?????# #?????????#### | | ???????????????????????? ?????# #######+### | | ??????????????????????? ????# | | ??????????????????????? ????# T | | ?????????????????????? ???# | | ?????????????????????? ???####### ## | | ?????????????????????# ????????# ##### | | ?????????????????????# ????????#==!!/!#???? | | ?????????????????????# #???????#= !!!#???? | | ?????????????????????##########???????########???? | | ?????????????????????????????????????????????????? | | ?????????????????????????????????????????????????? | | | | | | | | | | | | | | | | | | | | | | | +----------------------------------------------------+ Best States ------------- Heat Dissipation 39 Energy Generation 19 Energy Capacity 310 Matter Stores 300 Matter Capacity 300 Sight Range 16 Terrain Scan Density 110 Evasion (%) 55 Recoil Reduction 2 Item Schematics ----------------- None Robot Schematics ------------------ None Fabricated ------------ Nothing Repaired ---------- Nothing Studied --------- None Alien Tech Used ----------------- None Achievements -------------- None Challenges ------------ None Game ------ Seed CloakMassConstruct Manual? 0 Play Time 00:16:39 Cumulative 5.2 hours Start 2025.10.26 @ 09:59:04 End 2025.10.26 @ 10:44:21 Sessions 1 Manual Loads 0 Difficulty Rogue Special Mode None Game No. 23 Rogue 23 Adventurer 0 Explorer 0 Win Type - Total 0 Types 0/0/0/0/0/0/0/0/0/0 Lore% 6 Gallery% 11 Achievement% 9 Wizard Run 0 Options --------- Layout 1 ASCII 0 Keyboard 0 Movement Mouse Keybinds 0 Fullscreen 1 Font 24/Smallcaps Map View 50x35 Zoom Use 0% Tactical HUD 1 Map Filters NONE Filters NONE Steam 1 RUN: fff9812b-96b5-4c2e-9f3c-37ff8ae32840